{"text_format":"3","workbook":"xlsx","n_sheets":2,"sheets":["Gewichtsverlies bijhouden","berekeningen"],"not_rendered":{"charts":1,"defined_names":7},"read":"whole","date_system":"1900"}

{"sheet":"Gewichtsverlies bijhouden","index":0,"n_rows":129,"n_cols":11,"rows_kept":129,"merged":[[0,5,0,9],[1,5,3,9]]}
[null,"STREEFGEWICHT","GRAFIEKWEERGAVE",null,null," GEWICHTSVERLIES VAN PASCALINE"]
[{"$nulls":5},"BIJHOUDEN"]
[null,{"v":172,"d":"172.0"},"WEKELIJKS",{"$nulls":7}," "]
[]
[]
[{"$nulls":10}," "]
{"$rows_empty":18}
[null,"DATUM","GEWICHT"]
[null,"2012-11-30",{"v":176,"d":"176.0"}]
[null,"2012-12-07",{"v":176,"d":"176.0"}]
[null,"2012-12-14",177.6]
[null,"2012-12-21",176.5]
[null,"2012-12-28",176.1]
[null,"2013-01-04",{"v":174,"d":"174.0"}]
[null,"2013-01-11",{"v":173,"d":"173.0"}]
[null,"2013-01-18",{"v":172,"d":"172.0"}]
[null,"2013-01-25",{"v":172,"d":"172.0"}]
[null,"2013-02-01",{"v":173,"d":"173.0"}]
[null,"2013-02-08",{"v":174,"d":"174.0"}]
[null,"2013-02-15",{"v":175,"d":"175.0"}]
[null,"2013-02-22"]
[null,"2013-03-01"]
[null,"2013-03-08"]
[null,"2013-03-15"]
[null,"2013-03-22"]
[null,"2013-03-29"]
[null,"2013-04-05"]
[null,"2013-04-12"]
[null,"2013-04-19"]
[null,"2013-04-26"]
[null,"2013-05-03"]
[null,"2013-05-10"]
[null,"2013-05-17"]
[null,"2013-05-24"]
[null,"2013-05-31"]
[null,"2013-06-07"]
[null,"2013-06-14"]
[null,"2013-06-21"]
[null,"2013-06-28"]
[null,"2013-07-05"]
[null,"2013-07-12"]
[null,"2013-07-19"]
[null,"2013-07-26"]
[null,"2013-08-02"]
[null,"2013-08-09"]
[null,"2013-08-16"]
[null,"2013-08-23"]
[null,"2013-08-30"]
[null,"2013-09-06"]
[null,"2013-09-13"]
[null,"2013-09-20"]
[null,"2013-09-27"]
[null,"2013-10-04"]
[null,"2013-10-11"]
[null,"2013-10-18"]
[null,"2013-10-25"]
[null,"2013-11-01"]
[null,"2013-11-08"]
[null,"2013-11-15"]
[null,"2013-11-22"]
[null,"2013-11-29"]
[null,"2013-12-06"]
[null,"2013-12-13"]
[null,"2013-12-20"]
[null,"2013-12-27"]
[null,"2014-01-03"]
[null,"2014-01-10"]
[null,"2014-01-17"]
[null,"2014-01-24"]
[null,"2014-01-31"]
[null,"2014-02-07"]
[null,"2014-02-14"]
[null,"2014-02-21"]
[null,"2014-02-28"]
[null,"2014-03-07"]
[null,"2014-03-14"]
[null,"2014-03-21"]
[null,"2014-03-28"]
[null,"2014-04-04"]
[null,"2014-04-11"]
[null,"2014-04-18"]
[null,"2014-04-25"]
[null,"2014-05-02"]
[null,"2014-05-09"]
[null,"2014-05-16"]
[null,"2014-05-23"]
[null,"2014-05-30"]
[null,"2014-06-06"]
[null,"2014-06-13"]
[null,"2014-06-20"]
[null,"2014-06-27"]
[null,"2014-07-04"]
[null,"2014-07-11"]
[null,"2014-07-18"]
[null,"2014-07-25"]
[null,"2014-08-01"]
[null,"2014-08-08"]
[null,"2014-08-15"]
[null,"2014-08-22"]
[null,"2014-08-29"]
[null,"2014-09-05"]
[null,"2014-09-12"]
[null,"2014-09-19"]
[null,"2014-09-26"]
[null,"2014-10-03"]
[null,"2014-10-10"]
[null,"2014-10-17"]
[null,"2014-10-24"]
[null,"2014-10-31"]
[null,"2014-11-07"]
[null,"2014-11-14"]
[null,"2014-11-21"]

{"sheet":"berekeningen","index":1,"n_rows":108,"n_cols":17,"rows_kept":108,"hidden":true}
["*** Blad moet verborgen blijven ***"]
[]
[{"$f":"COUNTIF(A5:A108,FALSE)","v":13},"Perioden","Waarden",{"$nulls":3},{"$f":"COUNTIF(H5:H28,\">\"&0)","v":4},"Perioden",null,"Waarden"]
[null,"Week",null,null,true,null,null,"Maand","Einde van maand"]
[{"$f":"IF(('Gewichtsverlies bijhouden'!C26=0)*('Gewichtsverlies bijhouden'!C25=0),TRUE)","v":false},{"$f":"IF(A5,0,IF('Gewichtsverlies bijhouden'!B26=0,'Gewichtsverlies bijhouden'!B25+5,'Gewichtsverlies bijhouden'!B26))","v":"2012-11-30"},{"$f":"'Gewichtsverlies bijhouden'!C26","v":176},{"$f":"MIN(Grafiekperioden)","v":"2012-11-30"},{"$f":"IF($E$4,Streefgewicht,NA())","v":172},null,null,{"$f":"DATE(YEAR(B5),MONTH(B5),1)","v":"2012-11-01"},{"$f":"EOMONTH(H5,0)","v":"2012-11-30"},{"$f":"IFERROR(AVERAGEIFS(Gewichtstabel[GEWICHT],Gewichtstabel[DATUM],\">=\"&H5,Gewichtstabel[DATUM],\"<=\"&I5),NA())","v":176}]
[{"$f":"IF(('Gewichtsverlies bijhouden'!C27=0)*('Gewichtsverlies bijhouden'!C26=0),TRUE)","v":false},{"$f":"IF(A6,0,IF('Gewichtsverlies bijhouden'!B27=0,'Gewichtsverlies bijhouden'!B26+5,'Gewichtsverlies bijhouden'!B27))","v":"2012-12-07"},{"$f":"'Gewichtsverlies bijhouden'!C27","v":176},{"$f":"MAX(Grafiekperioden)","v":"2013-02-22"},172,null,null,{"$f":"IF(I5+1>MAX($B:$B),NA(),I5+1)","v":"2012-12-01"},"2012-12-31",{"$f":"IFERROR(AVERAGEIFS(Gewichtstabel[GEWICHT],Gewichtstabel[DATUM],\">=\"&H6,Gewichtstabel[DATUM],\"<=\"&I6),NA())","v":176.55}]
[{"$f":"IF(('Gewichtsverlies bijhouden'!C28=0)*('Gewichtsverlies bijhouden'!C27=0),TRUE)","v":false},{"$f":"IF(A7,0,IF('Gewichtsverlies bijhouden'!B28=0,'Gewichtsverlies bijhouden'!B27+5,'Gewichtsverlies bijhouden'!B28))","v":"2012-12-14"},{"$f":"'Gewichtsverlies bijhouden'!C28","v":177.6},{"$nulls":4},{"$f":"IF(I6+1>MAX($B:$B),NA(),I6+1)","v":"2013-01-01"},"2013-01-31",{"$f":"IFERROR(AVERAGEIFS(Gewichtstabel[GEWICHT],Gewichtstabel[DATUM],\">=\"&H7,Gewichtstabel[DATUM],\"<=\"&I7),NA())","v":172.75}]
[{"$f":"IF(('Gewichtsverlies bijhouden'!C29=0)*('Gewichtsverlies bijhouden'!C28=0),TRUE)","v":false},{"$f":"IF(A8,0,IF('Gewichtsverlies bijhouden'!B29=0,'Gewichtsverlies bijhouden'!B28+5,'Gewichtsverlies bijhouden'!B29))","v":"2012-12-21"},{"$f":"'Gewichtsverlies bijhouden'!C29","v":176.5},{"$nulls":4},"2013-02-01","2013-02-28",{"$f":"IFERROR(AVERAGEIFS(Gewichtstabel[GEWICHT],Gewichtstabel[DATUM],\">=\"&H8,Gewichtstabel[DATUM],\"<=\"&I8),NA())","v":174}]
[{"$f":"IF(('Gewichtsverlies bijhouden'!C30=0)*('Gewichtsverlies bijhouden'!C29=0),TRUE)","v":false},{"$f":"IF(A9,0,IF('Gewichtsverlies bijhouden'!B30=0,'Gewichtsverlies bijhouden'!B29+5,'Gewichtsverlies bijhouden'!B30))","v":"2012-12-28"},{"$f":"'Gewichtsverlies bijhouden'!C30","v":176.1},{"$nulls":4},{"$error":"#N/A"},{"$error":"#N/A"},{"$f":"IFERROR(AVERAGEIFS(Gewichtstabel[GEWICHT],Gewichtstabel[DATUM],\">=\"&H9,Gewichtstabel[DATUM],\"<=\"&I9),NA())","v":{"$error":"#N/A"}}]
[{"$f":"IF(('Gewichtsverlies bijhouden'!C31=0)*('Gewichtsverlies bijhouden'!C30=0),TRUE)","v":false},{"$f":"IF(A10,0,IF('Gewichtsverlies bijhouden'!B31=0,'Gewichtsverlies bijhouden'!B30+5,'Gewichtsverlies bijhouden'!B31))","v":"2013-01-04"},{"$f":"'Gewichtsverlies bijhouden'!C31","v":174},{"$nulls":4},{"$error":"#N/A"},{"$error":"#N/A"},{"$f":"IFERROR(AVERAGEIFS(Gewichtstabel[GEWICHT],Gewichtstabel[DATUM],\">=\"&H10,Gewichtstabel[DATUM],\"<=\"&I10),NA())","v":{"$error":"#N/A"}}]
[{"$f":"IF(('Gewichtsverlies bijhouden'!C32=0)*('Gewichtsverlies bijhouden'!C31=0),TRUE)","v":false},{"$f":"IF(A11,0,IF('Gewichtsverlies bijhouden'!B32=0,'Gewichtsverlies bijhouden'!B31+5,'Gewichtsverlies bijhouden'!B32))","v":"2013-01-11"},{"$f":"'Gewichtsverlies bijhouden'!C32","v":173},{"$nulls":4},{"$error":"#N/A"},{"$error":"#N/A"},{"$f":"IFERROR(AVERAGEIFS(Gewichtstabel[GEWICHT],Gewichtstabel[DATUM],\">=\"&H11,Gewichtstabel[DATUM],\"<=\"&I11),NA())","v":{"$error":"#N/A"}},{"$nulls":6},{"$f":"MAX($B:$B)","v":"2013-02-22"}]
[{"$f":"IF(('Gewichtsverlies bijhouden'!C33=0)*('Gewichtsverlies bijhouden'!C32=0),TRUE)","v":false},{"$f":"IF(A12,0,IF('Gewichtsverlies bijhouden'!B33=0,'Gewichtsverlies bijhouden'!B32+5,'Gewichtsverlies bijhouden'!B33))","v":"2013-01-18"},{"$f":"'Gewichtsverlies bijhouden'!C33","v":172},{"$nulls":4},{"$error":"#N/A"},{"$error":"#N/A"},{"$f":"IFERROR(AVERAGEIFS(Gewichtstabel[GEWICHT],Gewichtstabel[DATUM],\">=\"&H12,Gewichtstabel[DATUM],\"<=\"&I12),NA())","v":{"$error":"#N/A"}}]
[{"$f":"IF(('Gewichtsverlies bijhouden'!C34=0)*('Gewichtsverlies bijhouden'!C33=0),TRUE)","v":false},{"$f":"IF(A13,0,IF('Gewichtsverlies bijhouden'!B34=0,'Gewichtsverlies bijhouden'!B33+5,'Gewichtsverlies bijhouden'!B34))","v":"2013-01-25"},{"$f":"'Gewichtsverlies bijhouden'!C34","v":172},{"$nulls":4},{"$error":"#N/A"},{"$error":"#N/A"},{"$f":"IFERROR(AVERAGEIFS(Gewichtstabel[GEWICHT],Gewichtstabel[DATUM],\">=\"&H13,Gewichtstabel[DATUM],\"<=\"&I13),NA())","v":{"$error":"#N/A"}}]
[{"$f":"IF(('Gewichtsverlies bijhouden'!C35=0)*('Gewichtsverlies bijhouden'!C34=0),TRUE)","v":false},{"$f":"IF(A14,0,IF('Gewichtsverlies bijhouden'!B35=0,'Gewichtsverlies bijhouden'!B34+5,'Gewichtsverlies bijhouden'!B35))","v":"2013-02-01"},{"$f":"'Gewichtsverlies bijhouden'!C35","v":173},{"$nulls":4},{"$error":"#N/A"},{"$error":"#N/A"},{"$f":"IFERROR(AVERAGEIFS(Gewichtstabel[GEWICHT],Gewichtstabel[DATUM],\">=\"&H14,Gewichtstabel[DATUM],\"<=\"&I14),NA())","v":{"$error":"#N/A"}}]
[{"$f":"IF(('Gewichtsverlies bijhouden'!C36=0)*('Gewichtsverlies bijhouden'!C35=0),TRUE)","v":false},{"$f":"IF(A15,0,IF('Gewichtsverlies bijhouden'!B36=0,'Gewichtsverlies bijhouden'!B35+5,'Gewichtsverlies bijhouden'!B36))","v":"2013-02-08"},{"$f":"'Gewichtsverlies bijhouden'!C36","v":174},{"$nulls":4},{"$error":"#N/A"},{"$error":"#N/A"},{"$f":"IFERROR(AVERAGEIFS(Gewichtstabel[GEWICHT],Gewichtstabel[DATUM],\">=\"&H15,Gewichtstabel[DATUM],\"<=\"&I15),NA())","v":{"$error":"#N/A"}}]
[{"$f":"IF(('Gewichtsverlies bijhouden'!C37=0)*('Gewichtsverlies bijhouden'!C36=0),TRUE)","v":false},{"$f":"IF(A16,0,IF('Gewichtsverlies bijhouden'!B37=0,'Gewichtsverlies bijhouden'!B36+5,'Gewichtsverlies bijhouden'!B37))","v":"2013-02-15"},{"$f":"'Gewichtsverlies bijhouden'!C37","v":175},{"$nulls":4},{"$error":"#N/A"},{"$error":"#N/A"},{"$f":"IFERROR(AVERAGEIFS(Gewichtstabel[GEWICHT],Gewichtstabel[DATUM],\">=\"&H16,Gewichtstabel[DATUM],\"<=\"&I16),NA())","v":{"$error":"#N/A"}}]
[{"$f":"IF(('Gewichtsverlies bijhouden'!C38=0)*('Gewichtsverlies bijhouden'!C37=0),TRUE)","v":false},{"$f":"IF(A17,0,IF('Gewichtsverlies bijhouden'!B38=0,'Gewichtsverlies bijhouden'!B37+5,'Gewichtsverlies bijhouden'!B38))","v":"2013-02-22"},{"$f":"'Gewichtsverlies bijhouden'!C38","v":0},{"$nulls":4},{"$error":"#N/A"},{"$error":"#N/A"},{"$f":"IFERROR(AVERAGEIFS(Gewichtstabel[GEWICHT],Gewichtstabel[DATUM],\">=\"&H17,Gewichtstabel[DATUM],\"<=\"&I17),NA())","v":{"$error":"#N/A"}}]
[{"$f":"IF(('Gewichtsverlies bijhouden'!C39=0)*('Gewichtsverlies bijhouden'!C38=0),TRUE)","v":true},{"$f":"IF(A18,0,IF('Gewichtsverlies bijhouden'!B39=0,'Gewichtsverlies bijhouden'!B38+5,'Gewichtsverlies bijhouden'!B39))","v":"00:00:00"},{"$f":"'Gewichtsverlies bijhouden'!C39","v":0},{"$nulls":4},{"$error":"#N/A"},{"$error":"#N/A"},{"$f":"IFERROR(AVERAGEIFS(Gewichtstabel[GEWICHT],Gewichtstabel[DATUM],\">=\"&H18,Gewichtstabel[DATUM],\"<=\"&I18),NA())","v":{"$error":"#N/A"}}]
[{"$f":"IF(('Gewichtsverlies bijhouden'!C40=0)*('Gewichtsverlies bijhouden'!C39=0),TRUE)","v":true},{"$f":"IF(A19,0,IF('Gewichtsverlies bijhouden'!B40=0,'Gewichtsverlies bijhouden'!B39+5,'Gewichtsverlies bijhouden'!B40))","v":"00:00:00"},{"$f":"'Gewichtsverlies bijhouden'!C40","v":0},{"$nulls":4},{"$error":"#N/A"},{"$error":"#N/A"},{"$f":"IFERROR(AVERAGEIFS(Gewichtstabel[GEWICHT],Gewichtstabel[DATUM],\">=\"&H19,Gewichtstabel[DATUM],\"<=\"&I19),NA())","v":{"$error":"#N/A"}}]
[{"$f":"IF(('Gewichtsverlies bijhouden'!C41=0)*('Gewichtsverlies bijhouden'!C40=0),TRUE)","v":true},{"$f":"IF(A20,0,IF('Gewichtsverlies bijhouden'!B41=0,'Gewichtsverlies bijhouden'!B40+5,'Gewichtsverlies bijhouden'!B41))","v":"00:00:00"},{"$f":"'Gewichtsverlies bijhouden'!C41","v":0},{"$nulls":4},{"$error":"#N/A"},{"$error":"#N/A"},{"$f":"IFERROR(AVERAGEIFS(Gewichtstabel[GEWICHT],Gewichtstabel[DATUM],\">=\"&H20,Gewichtstabel[DATUM],\"<=\"&I20),NA())","v":{"$error":"#N/A"}}]
[{"$f":"IF(('Gewichtsverlies bijhouden'!C42=0)*('Gewichtsverlies bijhouden'!C41=0),TRUE)","v":true},{"$f":"IF(A21,0,IF('Gewichtsverlies bijhouden'!B42=0,'Gewichtsverlies bijhouden'!B41+5,'Gewichtsverlies bijhouden'!B42))","v":"00:00:00"},{"$f":"'Gewichtsverlies bijhouden'!C42","v":0},{"$nulls":4},{"$error":"#N/A"},{"$error":"#N/A"},{"$f":"IFERROR(AVERAGEIFS(Gewichtstabel[GEWICHT],Gewichtstabel[DATUM],\">=\"&H21,Gewichtstabel[DATUM],\"<=\"&I21),NA())","v":{"$error":"#N/A"}}]
[{"$f":"IF(('Gewichtsverlies bijhouden'!C43=0)*('Gewichtsverlies bijhouden'!C42=0),TRUE)","v":true},{"$f":"IF(A22,0,IF('Gewichtsverlies bijhouden'!B43=0,'Gewichtsverlies bijhouden'!B42+5,'Gewichtsverlies bijhouden'!B43))","v":"00:00:00"},{"$f":"'Gewichtsverlies bijhouden'!C43","v":0},{"$nulls":4},{"$error":"#N/A"},{"$error":"#N/A"},{"$f":"IFERROR(AVERAGEIFS(Gewichtstabel[GEWICHT],Gewichtstabel[DATUM],\">=\"&H22,Gewichtstabel[DATUM],\"<=\"&I22),NA())","v":{"$error":"#N/A"}}]
[{"$f":"IF(('Gewichtsverlies bijhouden'!C44=0)*('Gewichtsverlies bijhouden'!C43=0),TRUE)","v":true},{"$f":"IF(A23,0,IF('Gewichtsverlies bijhouden'!B44=0,'Gewichtsverlies bijhouden'!B43+5,'Gewichtsverlies bijhouden'!B44))","v":"00:00:00"},{"$f":"'Gewichtsverlies bijhouden'!C44","v":0},{"$nulls":4},{"$error":"#N/A"},{"$error":"#N/A"},{"$f":"IFERROR(AVERAGEIFS(Gewichtstabel[GEWICHT],Gewichtstabel[DATUM],\">=\"&H23,Gewichtstabel[DATUM],\"<=\"&I23),NA())","v":{"$error":"#N/A"}}]
[{"$f":"IF(('Gewichtsverlies bijhouden'!C45=0)*('Gewichtsverlies bijhouden'!C44=0),TRUE)","v":true},{"$f":"IF(A24,0,IF('Gewichtsverlies bijhouden'!B45=0,'Gewichtsverlies bijhouden'!B44+5,'Gewichtsverlies bijhouden'!B45))","v":"00:00:00"},{"$f":"'Gewichtsverlies bijhouden'!C45","v":0},{"$nulls":4},{"$error":"#N/A"},{"$error":"#N/A"},{"$f":"IFERROR(AVERAGEIFS(Gewichtstabel[GEWICHT],Gewichtstabel[DATUM],\">=\"&H24,Gewichtstabel[DATUM],\"<=\"&I24),NA())","v":{"$error":"#N/A"}}]
[{"$f":"IF(('Gewichtsverlies bijhouden'!C46=0)*('Gewichtsverlies bijhouden'!C45=0),TRUE)","v":true},{"$f":"IF(A25,0,IF('Gewichtsverlies bijhouden'!B46=0,'Gewichtsverlies bijhouden'!B45+5,'Gewichtsverlies bijhouden'!B46))","v":"00:00:00"},{"$f":"'Gewichtsverlies bijhouden'!C46","v":0},{"$nulls":4},{"$error":"#N/A"},{"$error":"#N/A"},{"$f":"IFERROR(AVERAGEIFS(Gewichtstabel[GEWICHT],Gewichtstabel[DATUM],\">=\"&H25,Gewichtstabel[DATUM],\"<=\"&I25),NA())","v":{"$error":"#N/A"}}]
[{"$f":"IF(('Gewichtsverlies bijhouden'!C47=0)*('Gewichtsverlies bijhouden'!C46=0),TRUE)","v":true},{"$f":"IF(A26,0,IF('Gewichtsverlies bijhouden'!B47=0,'Gewichtsverlies bijhouden'!B46+5,'Gewichtsverlies bijhouden'!B47))","v":"00:00:00"},{"$f":"'Gewichtsverlies bijhouden'!C47","v":0},{"$nulls":4},{"$error":"#N/A"},{"$error":"#N/A"},{"$f":"IFERROR(AVERAGEIFS(Gewichtstabel[GEWICHT],Gewichtstabel[DATUM],\">=\"&H26,Gewichtstabel[DATUM],\"<=\"&I26),NA())","v":{"$error":"#N/A"}}]
[{"$f":"IF(('Gewichtsverlies bijhouden'!C48=0)*('Gewichtsverlies bijhouden'!C47=0),TRUE)","v":true},{"$f":"IF(A27,0,IF('Gewichtsverlies bijhouden'!B48=0,'Gewichtsverlies bijhouden'!B47+5,'Gewichtsverlies bijhouden'!B48))","v":"00:00:00"},{"$f":"'Gewichtsverlies bijhouden'!C48","v":0},{"$nulls":4},{"$error":"#N/A"},{"$error":"#N/A"},{"$f":"IFERROR(AVERAGEIFS(Gewichtstabel[GEWICHT],Gewichtstabel[DATUM],\">=\"&H27,Gewichtstabel[DATUM],\"<=\"&I27),NA())","v":{"$error":"#N/A"}}]
[{"$f":"IF(('Gewichtsverlies bijhouden'!C49=0)*('Gewichtsverlies bijhouden'!C48=0),TRUE)","v":true},{"$f":"IF(A28,0,IF('Gewichtsverlies bijhouden'!B49=0,'Gewichtsverlies bijhouden'!B48+5,'Gewichtsverlies bijhouden'!B49))","v":"00:00:00"},{"$f":"'Gewichtsverlies bijhouden'!C49","v":0},{"$nulls":4},{"$error":"#N/A"},{"$error":"#N/A"},{"$f":"IFERROR(AVERAGEIFS(#REF!,#REF!,\">=\"&H28,#REF!,\"<=\"&I28),NA())","v":{"$error":"#N/A"}}]
[{"$f":"IF(('Gewichtsverlies bijhouden'!C50=0)*('Gewichtsverlies bijhouden'!C49=0),TRUE)","v":true},{"$f":"IF(A29,0,IF('Gewichtsverlies bijhouden'!B50=0,'Gewichtsverlies bijhouden'!B49+5,'Gewichtsverlies bijhouden'!B50))","v":"00:00:00"},{"$f":"'Gewichtsverlies bijhouden'!C50","v":0}]
[{"$f":"IF(('Gewichtsverlies bijhouden'!C51=0)*('Gewichtsverlies bijhouden'!C50=0),TRUE)","v":true},{"$f":"IF(A30,0,IF('Gewichtsverlies bijhouden'!B51=0,'Gewichtsverlies bijhouden'!B50+5,'Gewichtsverlies bijhouden'!B51))","v":"00:00:00"},{"$f":"'Gewichtsverlies bijhouden'!C51","v":0}]
[{"$f":"IF(('Gewichtsverlies bijhouden'!C52=0)*('Gewichtsverlies bijhouden'!C51=0),TRUE)","v":true},{"$f":"IF(A31,0,IF('Gewichtsverlies bijhouden'!B52=0,'Gewichtsverlies bijhouden'!B51+5,'Gewichtsverlies bijhouden'!B52))","v":"00:00:00"},{"$f":"'Gewichtsverlies bijhouden'!C52","v":0}]
[{"$f":"IF(('Gewichtsverlies bijhouden'!C53=0)*('Gewichtsverlies bijhouden'!C52=0),TRUE)","v":true},{"$f":"IF(A32,0,IF('Gewichtsverlies bijhouden'!B53=0,'Gewichtsverlies bijhouden'!B52+5,'Gewichtsverlies bijhouden'!B53))","v":"00:00:00"},{"$f":"'Gewichtsverlies bijhouden'!C53","v":0}]
[{"$f":"IF(('Gewichtsverlies bijhouden'!C54=0)*('Gewichtsverlies bijhouden'!C53=0),TRUE)","v":true},{"$f":"IF(A33,0,IF('Gewichtsverlies bijhouden'!B54=0,'Gewichtsverlies bijhouden'!B53+5,'Gewichtsverlies bijhouden'!B54))","v":"00:00:00"},{"$f":"'Gewichtsverlies bijhouden'!C54","v":0}]
[{"$f":"IF(('Gewichtsverlies bijhouden'!C55=0)*('Gewichtsverlies bijhouden'!C54=0),TRUE)","v":true},{"$f":"IF(A34,0,IF('Gewichtsverlies bijhouden'!B55=0,'Gewichtsverlies bijhouden'!B54+5,'Gewichtsverlies bijhouden'!B55))","v":"00:00:00"},{"$f":"'Gewichtsverlies bijhouden'!C55","v":0}]
[{"$f":"IF(('Gewichtsverlies bijhouden'!C56=0)*('Gewichtsverlies bijhouden'!C55=0),TRUE)","v":true},{"$f":"IF(A35,0,IF('Gewichtsverlies bijhouden'!B56=0,'Gewichtsverlies bijhouden'!B55+5,'Gewichtsverlies bijhouden'!B56))","v":"00:00:00"},{"$f":"'Gewichtsverlies bijhouden'!C56","v":0}]
[{"$f":"IF(('Gewichtsverlies bijhouden'!C57=0)*('Gewichtsverlies bijhouden'!C56=0),TRUE)","v":true},{"$f":"IF(A36,0,IF('Gewichtsverlies bijhouden'!B57=0,'Gewichtsverlies bijhouden'!B56+5,'Gewichtsverlies bijhouden'!B57))","v":"00:00:00"},{"$f":"'Gewichtsverlies bijhouden'!C57","v":0}]
[{"$f":"IF(('Gewichtsverlies bijhouden'!C58=0)*('Gewichtsverlies bijhouden'!C57=0),TRUE)","v":true},{"$f":"IF(A37,0,IF('Gewichtsverlies bijhouden'!B58=0,'Gewichtsverlies bijhouden'!B57+5,'Gewichtsverlies bijhouden'!B58))","v":"00:00:00"},{"$f":"'Gewichtsverlies bijhouden'!C58","v":0}]
[{"$f":"IF(('Gewichtsverlies bijhouden'!C59=0)*('Gewichtsverlies bijhouden'!C58=0),TRUE)","v":true},{"$f":"IF(A38,0,IF('Gewichtsverlies bijhouden'!B59=0,'Gewichtsverlies bijhouden'!B58+5,'Gewichtsverlies bijhouden'!B59))","v":"00:00:00"},{"$f":"'Gewichtsverlies bijhouden'!C59","v":0}]
[{"$f":"IF(('Gewichtsverlies bijhouden'!C60=0)*('Gewichtsverlies bijhouden'!C59=0),TRUE)","v":true},{"$f":"IF(A39,0,IF('Gewichtsverlies bijhouden'!B60=0,'Gewichtsverlies bijhouden'!B59+5,'Gewichtsverlies bijhouden'!B60))","v":"00:00:00"},{"$f":"'Gewichtsverlies bijhouden'!C60","v":0}]
[{"$f":"IF(('Gewichtsverlies bijhouden'!C61=0)*('Gewichtsverlies bijhouden'!C60=0),TRUE)","v":true},{"$f":"IF(A40,0,IF('Gewichtsverlies bijhouden'!B61=0,'Gewichtsverlies bijhouden'!B60+5,'Gewichtsverlies bijhouden'!B61))","v":"00:00:00"},{"$f":"'Gewichtsverlies bijhouden'!C61","v":0}]
[{"$f":"IF(('Gewichtsverlies bijhouden'!C62=0)*('Gewichtsverlies bijhouden'!C61=0),TRUE)","v":true},{"$f":"IF(A41,0,IF('Gewichtsverlies bijhouden'!B62=0,'Gewichtsverlies bijhouden'!B61+5,'Gewichtsverlies bijhouden'!B62))","v":"00:00:00"},{"$f":"'Gewichtsverlies bijhouden'!C62","v":0}]
[{"$f":"IF(('Gewichtsverlies bijhouden'!C63=0)*('Gewichtsverlies bijhouden'!C62=0),TRUE)","v":true},{"$f":"IF(A42,0,IF('Gewichtsverlies bijhouden'!B63=0,'Gewichtsverlies bijhouden'!B62+5,'Gewichtsverlies bijhouden'!B63))","v":"00:00:00"},{"$f":"'Gewichtsverlies bijhouden'!C63","v":0}]
[{"$f":"IF(('Gewichtsverlies bijhouden'!C64=0)*('Gewichtsverlies bijhouden'!C63=0),TRUE)","v":true},{"$f":"IF(A43,0,IF('Gewichtsverlies bijhouden'!B64=0,'Gewichtsverlies bijhouden'!B63+5,'Gewichtsverlies bijhouden'!B64))","v":"00:00:00"},{"$f":"'Gewichtsverlies bijhouden'!C64","v":0}]
[{"$f":"IF(('Gewichtsverlies bijhouden'!C65=0)*('Gewichtsverlies bijhouden'!C64=0),TRUE)","v":true},{"$f":"IF(A44,0,IF('Gewichtsverlies bijhouden'!B65=0,'Gewichtsverlies bijhouden'!B64+5,'Gewichtsverlies bijhouden'!B65))","v":"00:00:00"},{"$f":"'Gewichtsverlies bijhouden'!C65","v":0}]
[{"$f":"IF(('Gewichtsverlies bijhouden'!C66=0)*('Gewichtsverlies bijhouden'!C65=0),TRUE)","v":true},{"$f":"IF(A45,0,IF('Gewichtsverlies bijhouden'!B66=0,'Gewichtsverlies bijhouden'!B65+5,'Gewichtsverlies bijhouden'!B66))","v":"00:00:00"},{"$f":"'Gewichtsverlies bijhouden'!C66","v":0}]
[{"$f":"IF(('Gewichtsverlies bijhouden'!C67=0)*('Gewichtsverlies bijhouden'!C66=0),TRUE)","v":true},{"$f":"IF(A46,0,IF('Gewichtsverlies bijhouden'!B67=0,'Gewichtsverlies bijhouden'!B66+5,'Gewichtsverlies bijhouden'!B67))","v":"00:00:00"},{"$f":"'Gewichtsverlies bijhouden'!C67","v":0}]
[{"$f":"IF(('Gewichtsverlies bijhouden'!C68=0)*('Gewichtsverlies bijhouden'!C67=0),TRUE)","v":true},{"$f":"IF(A47,0,IF('Gewichtsverlies bijhouden'!B68=0,'Gewichtsverlies bijhouden'!B67+5,'Gewichtsverlies bijhouden'!B68))","v":"00:00:00"},{"$f":"'Gewichtsverlies bijhouden'!C68","v":0}]
[{"$f":"IF(('Gewichtsverlies bijhouden'!C69=0)*('Gewichtsverlies bijhouden'!C68=0),TRUE)","v":true},{"$f":"IF(A48,0,IF('Gewichtsverlies bijhouden'!B69=0,'Gewichtsverlies bijhouden'!B68+5,'Gewichtsverlies bijhouden'!B69))","v":"00:00:00"},{"$f":"'Gewichtsverlies bijhouden'!C69","v":0}]
[{"$f":"IF(('Gewichtsverlies bijhouden'!C70=0)*('Gewichtsverlies bijhouden'!C69=0),TRUE)","v":true},{"$f":"IF(A49,0,IF('Gewichtsverlies bijhouden'!B70=0,'Gewichtsverlies bijhouden'!B69+5,'Gewichtsverlies bijhouden'!B70))","v":"00:00:00"},{"$f":"'Gewichtsverlies bijhouden'!C70","v":0}]
[{"$f":"IF(('Gewichtsverlies bijhouden'!C71=0)*('Gewichtsverlies bijhouden'!C70=0),TRUE)","v":true},{"$f":"IF(A50,0,IF('Gewichtsverlies bijhouden'!B71=0,'Gewichtsverlies bijhouden'!B70+5,'Gewichtsverlies bijhouden'!B71))","v":"00:00:00"},{"$f":"'Gewichtsverlies bijhouden'!C71","v":0}]
[{"$f":"IF(('Gewichtsverlies bijhouden'!C72=0)*('Gewichtsverlies bijhouden'!C71=0),TRUE)","v":true},{"$f":"IF(A51,0,IF('Gewichtsverlies bijhouden'!B72=0,'Gewichtsverlies bijhouden'!B71+5,'Gewichtsverlies bijhouden'!B72))","v":"00:00:00"},{"$f":"'Gewichtsverlies bijhouden'!C72","v":0}]
[{"$f":"IF(('Gewichtsverlies bijhouden'!C73=0)*('Gewichtsverlies bijhouden'!C72=0),TRUE)","v":true},{"$f":"IF(A52,0,IF('Gewichtsverlies bijhouden'!B73=0,'Gewichtsverlies bijhouden'!B72+5,'Gewichtsverlies bijhouden'!B73))","v":"00:00:00"},{"$f":"'Gewichtsverlies bijhouden'!C73","v":0}]
[{"$f":"IF(('Gewichtsverlies bijhouden'!C74=0)*('Gewichtsverlies bijhouden'!C73=0),TRUE)","v":true},{"$f":"IF(A53,0,IF('Gewichtsverlies bijhouden'!B74=0,'Gewichtsverlies bijhouden'!B73+5,'Gewichtsverlies bijhouden'!B74))","v":"00:00:00"},{"$f":"'Gewichtsverlies bijhouden'!C74","v":0}]
[{"$f":"IF(('Gewichtsverlies bijhouden'!C75=0)*('Gewichtsverlies bijhouden'!C74=0),TRUE)","v":true},{"$f":"IF(A54,0,IF('Gewichtsverlies bijhouden'!B75=0,'Gewichtsverlies bijhouden'!B74+5,'Gewichtsverlies bijhouden'!B75))","v":"00:00:00"},{"$f":"'Gewichtsverlies bijhouden'!C75","v":0}]
[{"$f":"IF(('Gewichtsverlies bijhouden'!C76=0)*('Gewichtsverlies bijhouden'!C75=0),TRUE)","v":true},{"$f":"IF(A55,0,IF('Gewichtsverlies bijhouden'!B76=0,'Gewichtsverlies bijhouden'!B75+5,'Gewichtsverlies bijhouden'!B76))","v":"00:00:00"},{"$f":"'Gewichtsverlies bijhouden'!C76","v":0}]
[{"$f":"IF(('Gewichtsverlies bijhouden'!C77=0)*('Gewichtsverlies bijhouden'!C76=0),TRUE)","v":true},{"$f":"IF(A56,0,IF('Gewichtsverlies bijhouden'!B77=0,'Gewichtsverlies bijhouden'!B76+5,'Gewichtsverlies bijhouden'!B77))","v":"00:00:00"},{"$f":"'Gewichtsverlies bijhouden'!C77","v":0}]
[{"$f":"IF(('Gewichtsverlies bijhouden'!C78=0)*('Gewichtsverlies bijhouden'!C77=0),TRUE)","v":true},{"$f":"IF(A57,0,IF('Gewichtsverlies bijhouden'!B78=0,'Gewichtsverlies bijhouden'!B77+5,'Gewichtsverlies bijhouden'!B78))","v":"00:00:00"},{"$f":"'Gewichtsverlies bijhouden'!C78","v":0}]
[{"$f":"IF(('Gewichtsverlies bijhouden'!C79=0)*('Gewichtsverlies bijhouden'!C78=0),TRUE)","v":true},{"$f":"IF(A58,0,IF('Gewichtsverlies bijhouden'!B79=0,'Gewichtsverlies bijhouden'!B78+5,'Gewichtsverlies bijhouden'!B79))","v":"00:00:00"},{"$f":"'Gewichtsverlies bijhouden'!C79","v":0}]
[{"$f":"IF(('Gewichtsverlies bijhouden'!C80=0)*('Gewichtsverlies bijhouden'!C79=0),TRUE)","v":true},{"$f":"IF(A59,0,IF('Gewichtsverlies bijhouden'!B80=0,'Gewichtsverlies bijhouden'!B79+5,'Gewichtsverlies bijhouden'!B80))","v":"00:00:00"},{"$f":"'Gewichtsverlies bijhouden'!C80","v":0}]
[{"$f":"IF(('Gewichtsverlies bijhouden'!C81=0)*('Gewichtsverlies bijhouden'!C80=0),TRUE)","v":true},{"$f":"IF(A60,0,IF('Gewichtsverlies bijhouden'!B81=0,'Gewichtsverlies bijhouden'!B80+5,'Gewichtsverlies bijhouden'!B81))","v":"00:00:00"},{"$f":"'Gewichtsverlies bijhouden'!C81","v":0}]
[{"$f":"IF(('Gewichtsverlies bijhouden'!C82=0)*('Gewichtsverlies bijhouden'!C81=0),TRUE)","v":true},{"$f":"IF(A61,0,IF('Gewichtsverlies bijhouden'!B82=0,'Gewichtsverlies bijhouden'!B81+5,'Gewichtsverlies bijhouden'!B82))","v":"00:00:00"},{"$f":"'Gewichtsverlies bijhouden'!C82","v":0}]
[{"$f":"IF(('Gewichtsverlies bijhouden'!C83=0)*('Gewichtsverlies bijhouden'!C82=0),TRUE)","v":true},{"$f":"IF(A62,0,IF('Gewichtsverlies bijhouden'!B83=0,'Gewichtsverlies bijhouden'!B82+5,'Gewichtsverlies bijhouden'!B83))","v":"00:00:00"},{"$f":"'Gewichtsverlies bijhouden'!C83","v":0}]
[{"$f":"IF(('Gewichtsverlies bijhouden'!C84=0)*('Gewichtsverlies bijhouden'!C83=0),TRUE)","v":true},{"$f":"IF(A63,0,IF('Gewichtsverlies bijhouden'!B84=0,'Gewichtsverlies bijhouden'!B83+5,'Gewichtsverlies bijhouden'!B84))","v":"00:00:00"},{"$f":"'Gewichtsverlies bijhouden'!C84","v":0}]
[{"$f":"IF(('Gewichtsverlies bijhouden'!C85=0)*('Gewichtsverlies bijhouden'!C84=0),TRUE)","v":true},{"$f":"IF(A64,0,IF('Gewichtsverlies bijhouden'!B85=0,'Gewichtsverlies bijhouden'!B84+5,'Gewichtsverlies bijhouden'!B85))","v":"00:00:00"},{"$f":"'Gewichtsverlies bijhouden'!C85","v":0}]
[{"$f":"IF(('Gewichtsverlies bijhouden'!C86=0)*('Gewichtsverlies bijhouden'!C85=0),TRUE)","v":true},{"$f":"IF(A65,0,IF('Gewichtsverlies bijhouden'!B86=0,'Gewichtsverlies bijhouden'!B85+5,'Gewichtsverlies bijhouden'!B86))","v":"00:00:00"},{"$f":"'Gewichtsverlies bijhouden'!C86","v":0}]
[{"$f":"IF(('Gewichtsverlies bijhouden'!C87=0)*('Gewichtsverlies bijhouden'!C86=0),TRUE)","v":true},{"$f":"IF(A66,0,IF('Gewichtsverlies bijhouden'!B87=0,'Gewichtsverlies bijhouden'!B86+5,'Gewichtsverlies bijhouden'!B87))","v":"00:00:00"},{"$f":"'Gewichtsverlies bijhouden'!C87","v":0}]
[{"$f":"IF(('Gewichtsverlies bijhouden'!C88=0)*('Gewichtsverlies bijhouden'!C87=0),TRUE)","v":true},{"$f":"IF(A67,0,IF('Gewichtsverlies bijhouden'!B88=0,'Gewichtsverlies bijhouden'!B87+5,'Gewichtsverlies bijhouden'!B88))","v":"00:00:00"},{"$f":"'Gewichtsverlies bijhouden'!C88","v":0}]
[{"$f":"IF(('Gewichtsverlies bijhouden'!C89=0)*('Gewichtsverlies bijhouden'!C88=0),TRUE)","v":true},{"$f":"IF(A68,0,IF('Gewichtsverlies bijhouden'!B89=0,'Gewichtsverlies bijhouden'!B88+5,'Gewichtsverlies bijhouden'!B89))","v":"00:00:00"},{"$f":"'Gewichtsverlies bijhouden'!C89","v":0}]
[{"$f":"IF(('Gewichtsverlies bijhouden'!C90=0)*('Gewichtsverlies bijhouden'!C89=0),TRUE)","v":true},{"$f":"IF(A69,0,IF('Gewichtsverlies bijhouden'!B90=0,'Gewichtsverlies bijhouden'!B89+5,'Gewichtsverlies bijhouden'!B90))","v":"00:00:00"},{"$f":"'Gewichtsverlies bijhouden'!C90","v":0}]
[{"$f":"IF(('Gewichtsverlies bijhouden'!C91=0)*('Gewichtsverlies bijhouden'!C90=0),TRUE)","v":true},{"$f":"IF(A70,0,IF('Gewichtsverlies bijhouden'!B91=0,'Gewichtsverlies bijhouden'!B90+5,'Gewichtsverlies bijhouden'!B91))","v":"00:00:00"},{"$f":"'Gewichtsverlies bijhouden'!C91","v":0}]
[{"$f":"IF(('Gewichtsverlies bijhouden'!C92=0)*('Gewichtsverlies bijhouden'!C91=0),TRUE)","v":true},{"$f":"IF(A71,0,IF('Gewichtsverlies bijhouden'!B92=0,'Gewichtsverlies bijhouden'!B91+5,'Gewichtsverlies bijhouden'!B92))","v":"00:00:00"},{"$f":"'Gewichtsverlies bijhouden'!C92","v":0}]
[{"$f":"IF(('Gewichtsverlies bijhouden'!C93=0)*('Gewichtsverlies bijhouden'!C92=0),TRUE)","v":true},{"$f":"IF(A72,0,IF('Gewichtsverlies bijhouden'!B93=0,'Gewichtsverlies bijhouden'!B92+5,'Gewichtsverlies bijhouden'!B93))","v":"00:00:00"},{"$f":"'Gewichtsverlies bijhouden'!C93","v":0}]
[{"$f":"IF(('Gewichtsverlies bijhouden'!C94=0)*('Gewichtsverlies bijhouden'!C93=0),TRUE)","v":true},{"$f":"IF(A73,0,IF('Gewichtsverlies bijhouden'!B94=0,'Gewichtsverlies bijhouden'!B93+5,'Gewichtsverlies bijhouden'!B94))","v":"00:00:00"},{"$f":"'Gewichtsverlies bijhouden'!C94","v":0}]
[{"$f":"IF(('Gewichtsverlies bijhouden'!C95=0)*('Gewichtsverlies bijhouden'!C94=0),TRUE)","v":true},{"$f":"IF(A74,0,IF('Gewichtsverlies bijhouden'!B95=0,'Gewichtsverlies bijhouden'!B94+5,'Gewichtsverlies bijhouden'!B95))","v":"00:00:00"},{"$f":"'Gewichtsverlies bijhouden'!C95","v":0}]
[{"$f":"IF(('Gewichtsverlies bijhouden'!C96=0)*('Gewichtsverlies bijhouden'!C95=0),TRUE)","v":true},{"$f":"IF(A75,0,IF('Gewichtsverlies bijhouden'!B96=0,'Gewichtsverlies bijhouden'!B95+5,'Gewichtsverlies bijhouden'!B96))","v":"00:00:00"},{"$f":"'Gewichtsverlies bijhouden'!C96","v":0}]
[{"$f":"IF(('Gewichtsverlies bijhouden'!C97=0)*('Gewichtsverlies bijhouden'!C96=0),TRUE)","v":true},{"$f":"IF(A76,0,IF('Gewichtsverlies bijhouden'!B97=0,'Gewichtsverlies bijhouden'!B96+5,'Gewichtsverlies bijhouden'!B97))","v":"00:00:00"},{"$f":"'Gewichtsverlies bijhouden'!C97","v":0}]
[{"$f":"IF(('Gewichtsverlies bijhouden'!C98=0)*('Gewichtsverlies bijhouden'!C97=0),TRUE)","v":true},{"$f":"IF(A77,0,IF('Gewichtsverlies bijhouden'!B98=0,'Gewichtsverlies bijhouden'!B97+5,'Gewichtsverlies bijhouden'!B98))","v":"00:00:00"},{"$f":"'Gewichtsverlies bijhouden'!C98","v":0}]
[{"$f":"IF(('Gewichtsverlies bijhouden'!C99=0)*('Gewichtsverlies bijhouden'!C98=0),TRUE)","v":true},{"$f":"IF(A78,0,IF('Gewichtsverlies bijhouden'!B99=0,'Gewichtsverlies bijhouden'!B98+5,'Gewichtsverlies bijhouden'!B99))","v":"00:00:00"},{"$f":"'Gewichtsverlies bijhouden'!C99","v":0}]
[{"$f":"IF(('Gewichtsverlies bijhouden'!C100=0)*('Gewichtsverlies bijhouden'!C99=0),TRUE)","v":true},{"$f":"IF(A79,0,IF('Gewichtsverlies bijhouden'!B100=0,'Gewichtsverlies bijhouden'!B99+5,'Gewichtsverlies bijhouden'!B100))","v":"00:00:00"},{"$f":"'Gewichtsverlies bijhouden'!C100","v":0}]
[{"$f":"IF(('Gewichtsverlies bijhouden'!C101=0)*('Gewichtsverlies bijhouden'!C100=0),TRUE)","v":true},{"$f":"IF(A80,0,IF('Gewichtsverlies bijhouden'!B101=0,'Gewichtsverlies bijhouden'!B100+5,'Gewichtsverlies bijhouden'!B101))","v":"00:00:00"},{"$f":"'Gewichtsverlies bijhouden'!C101","v":0}]
[{"$f":"IF(('Gewichtsverlies bijhouden'!C102=0)*('Gewichtsverlies bijhouden'!C101=0),TRUE)","v":true},{"$f":"IF(A81,0,IF('Gewichtsverlies bijhouden'!B102=0,'Gewichtsverlies bijhouden'!B101+5,'Gewichtsverlies bijhouden'!B102))","v":"00:00:00"},{"$f":"'Gewichtsverlies bijhouden'!C102","v":0}]
[{"$f":"IF(('Gewichtsverlies bijhouden'!C103=0)*('Gewichtsverlies bijhouden'!C102=0),TRUE)","v":true},{"$f":"IF(A82,0,IF('Gewichtsverlies bijhouden'!B103=0,'Gewichtsverlies bijhouden'!B102+5,'Gewichtsverlies bijhouden'!B103))","v":"00:00:00"},{"$f":"'Gewichtsverlies bijhouden'!C103","v":0}]
[{"$f":"IF(('Gewichtsverlies bijhouden'!C104=0)*('Gewichtsverlies bijhouden'!C103=0),TRUE)","v":true},{"$f":"IF(A83,0,IF('Gewichtsverlies bijhouden'!B104=0,'Gewichtsverlies bijhouden'!B103+5,'Gewichtsverlies bijhouden'!B104))","v":"00:00:00"},{"$f":"'Gewichtsverlies bijhouden'!C104","v":0}]
[{"$f":"IF(('Gewichtsverlies bijhouden'!C105=0)*('Gewichtsverlies bijhouden'!C104=0),TRUE)","v":true},{"$f":"IF(A84,0,IF('Gewichtsverlies bijhouden'!B105=0,'Gewichtsverlies bijhouden'!B104+5,'Gewichtsverlies bijhouden'!B105))","v":"00:00:00"},{"$f":"'Gewichtsverlies bijhouden'!C105","v":0}]
[{"$f":"IF(('Gewichtsverlies bijhouden'!C106=0)*('Gewichtsverlies bijhouden'!C105=0),TRUE)","v":true},{"$f":"IF(A85,0,IF('Gewichtsverlies bijhouden'!B106=0,'Gewichtsverlies bijhouden'!B105+5,'Gewichtsverlies bijhouden'!B106))","v":"00:00:00"},{"$f":"'Gewichtsverlies bijhouden'!C106","v":0}]
[{"$f":"IF(('Gewichtsverlies bijhouden'!C107=0)*('Gewichtsverlies bijhouden'!C106=0),TRUE)","v":true},{"$f":"IF(A86,0,IF('Gewichtsverlies bijhouden'!B107=0,'Gewichtsverlies bijhouden'!B106+5,'Gewichtsverlies bijhouden'!B107))","v":"00:00:00"},{"$f":"'Gewichtsverlies bijhouden'!C107","v":0}]
[{"$f":"IF(('Gewichtsverlies bijhouden'!C108=0)*('Gewichtsverlies bijhouden'!C107=0),TRUE)","v":true},{"$f":"IF(A87,0,IF('Gewichtsverlies bijhouden'!B108=0,'Gewichtsverlies bijhouden'!B107+5,'Gewichtsverlies bijhouden'!B108))","v":"00:00:00"},{"$f":"'Gewichtsverlies bijhouden'!C108","v":0}]
[{"$f":"IF(('Gewichtsverlies bijhouden'!C109=0)*('Gewichtsverlies bijhouden'!C108=0),TRUE)","v":true},{"$f":"IF(A88,0,IF('Gewichtsverlies bijhouden'!B109=0,'Gewichtsverlies bijhouden'!B108+5,'Gewichtsverlies bijhouden'!B109))","v":"00:00:00"},{"$f":"'Gewichtsverlies bijhouden'!C109","v":0}]
[{"$f":"IF(('Gewichtsverlies bijhouden'!C110=0)*('Gewichtsverlies bijhouden'!C109=0),TRUE)","v":true},{"$f":"IF(A89,0,IF('Gewichtsverlies bijhouden'!B110=0,'Gewichtsverlies bijhouden'!B109+5,'Gewichtsverlies bijhouden'!B110))","v":"00:00:00"},{"$f":"'Gewichtsverlies bijhouden'!C110","v":0}]
[{"$f":"IF(('Gewichtsverlies bijhouden'!C111=0)*('Gewichtsverlies bijhouden'!C110=0),TRUE)","v":true},{"$f":"IF(A90,0,IF('Gewichtsverlies bijhouden'!B111=0,'Gewichtsverlies bijhouden'!B110+5,'Gewichtsverlies bijhouden'!B111))","v":"00:00:00"},{"$f":"'Gewichtsverlies bijhouden'!C111","v":0}]
[{"$f":"IF(('Gewichtsverlies bijhouden'!C112=0)*('Gewichtsverlies bijhouden'!C111=0),TRUE)","v":true},{"$f":"IF(A91,0,IF('Gewichtsverlies bijhouden'!B112=0,'Gewichtsverlies bijhouden'!B111+5,'Gewichtsverlies bijhouden'!B112))","v":"00:00:00"},{"$f":"'Gewichtsverlies bijhouden'!C112","v":0}]
[{"$f":"IF(('Gewichtsverlies bijhouden'!C113=0)*('Gewichtsverlies bijhouden'!C112=0),TRUE)","v":true},{"$f":"IF(A92,0,IF('Gewichtsverlies bijhouden'!B113=0,'Gewichtsverlies bijhouden'!B112+5,'Gewichtsverlies bijhouden'!B113))","v":"00:00:00"},{"$f":"'Gewichtsverlies bijhouden'!C113","v":0}]
[{"$f":"IF(('Gewichtsverlies bijhouden'!C114=0)*('Gewichtsverlies bijhouden'!C113=0),TRUE)","v":true},{"$f":"IF(A93,0,IF('Gewichtsverlies bijhouden'!B114=0,'Gewichtsverlies bijhouden'!B113+5,'Gewichtsverlies bijhouden'!B114))","v":"00:00:00"},{"$f":"'Gewichtsverlies bijhouden'!C114","v":0}]
[{"$f":"IF(('Gewichtsverlies bijhouden'!C115=0)*('Gewichtsverlies bijhouden'!C114=0),TRUE)","v":true},{"$f":"IF(A94,0,IF('Gewichtsverlies bijhouden'!B115=0,'Gewichtsverlies bijhouden'!B114+5,'Gewichtsverlies bijhouden'!B115))","v":"00:00:00"},{"$f":"'Gewichtsverlies bijhouden'!C115","v":0}]
[{"$f":"IF(('Gewichtsverlies bijhouden'!C116=0)*('Gewichtsverlies bijhouden'!C115=0),TRUE)","v":true},{"$f":"IF(A95,0,IF('Gewichtsverlies bijhouden'!B116=0,'Gewichtsverlies bijhouden'!B115+5,'Gewichtsverlies bijhouden'!B116))","v":"00:00:00"},{"$f":"'Gewichtsverlies bijhouden'!C116","v":0}]
[{"$f":"IF(('Gewichtsverlies bijhouden'!C117=0)*('Gewichtsverlies bijhouden'!C116=0),TRUE)","v":true},{"$f":"IF(A96,0,IF('Gewichtsverlies bijhouden'!B117=0,'Gewichtsverlies bijhouden'!B116+5,'Gewichtsverlies bijhouden'!B117))","v":"00:00:00"},{"$f":"'Gewichtsverlies bijhouden'!C117","v":0}]
[{"$f":"IF(('Gewichtsverlies bijhouden'!C118=0)*('Gewichtsverlies bijhouden'!C117=0),TRUE)","v":true},{"$f":"IF(A97,0,IF('Gewichtsverlies bijhouden'!B118=0,'Gewichtsverlies bijhouden'!B117+5,'Gewichtsverlies bijhouden'!B118))","v":"00:00:00"},{"$f":"'Gewichtsverlies bijhouden'!C118","v":0}]
[{"$f":"IF(('Gewichtsverlies bijhouden'!C119=0)*('Gewichtsverlies bijhouden'!C118=0),TRUE)","v":true},{"$f":"IF(A98,0,IF('Gewichtsverlies bijhouden'!B119=0,'Gewichtsverlies bijhouden'!B118+5,'Gewichtsverlies bijhouden'!B119))","v":"00:00:00"},{"$f":"'Gewichtsverlies bijhouden'!C119","v":0}]
[{"$f":"IF(('Gewichtsverlies bijhouden'!C120=0)*('Gewichtsverlies bijhouden'!C119=0),TRUE)","v":true},{"$f":"IF(A99,0,IF('Gewichtsverlies bijhouden'!B120=0,'Gewichtsverlies bijhouden'!B119+5,'Gewichtsverlies bijhouden'!B120))","v":"00:00:00"},{"$f":"'Gewichtsverlies bijhouden'!C120","v":0}]
[{"$f":"IF(('Gewichtsverlies bijhouden'!C121=0)*('Gewichtsverlies bijhouden'!C120=0),TRUE)","v":true},{"$f":"IF(A100,0,IF('Gewichtsverlies bijhouden'!B121=0,'Gewichtsverlies bijhouden'!B120+5,'Gewichtsverlies bijhouden'!B121))","v":"00:00:00"},{"$f":"'Gewichtsverlies bijhouden'!C121","v":0}]
[{"$f":"IF(('Gewichtsverlies bijhouden'!C122=0)*('Gewichtsverlies bijhouden'!C121=0),TRUE)","v":true},{"$f":"IF(A101,0,IF('Gewichtsverlies bijhouden'!B122=0,'Gewichtsverlies bijhouden'!B121+5,'Gewichtsverlies bijhouden'!B122))","v":"00:00:00"},{"$f":"'Gewichtsverlies bijhouden'!C122","v":0}]
[{"$f":"IF(('Gewichtsverlies bijhouden'!C123=0)*('Gewichtsverlies bijhouden'!C122=0),TRUE)","v":true},{"$f":"IF(A102,0,IF('Gewichtsverlies bijhouden'!B123=0,'Gewichtsverlies bijhouden'!B122+5,'Gewichtsverlies bijhouden'!B123))","v":"00:00:00"},{"$f":"'Gewichtsverlies bijhouden'!C123","v":0}]
[{"$f":"IF(('Gewichtsverlies bijhouden'!C124=0)*('Gewichtsverlies bijhouden'!C123=0),TRUE)","v":true},{"$f":"IF(A103,0,IF('Gewichtsverlies bijhouden'!B124=0,'Gewichtsverlies bijhouden'!B123+5,'Gewichtsverlies bijhouden'!B124))","v":"00:00:00"},{"$f":"'Gewichtsverlies bijhouden'!C124","v":0}]
[{"$f":"IF(('Gewichtsverlies bijhouden'!C125=0)*('Gewichtsverlies bijhouden'!C124=0),TRUE)","v":true},{"$f":"IF(A104,0,IF('Gewichtsverlies bijhouden'!B125=0,'Gewichtsverlies bijhouden'!B124+5,'Gewichtsverlies bijhouden'!B125))","v":"00:00:00"},{"$f":"'Gewichtsverlies bijhouden'!C125","v":0}]
[{"$f":"IF(('Gewichtsverlies bijhouden'!C126=0)*('Gewichtsverlies bijhouden'!C125=0),TRUE)","v":true},{"$f":"IF(A105,0,IF('Gewichtsverlies bijhouden'!B126=0,'Gewichtsverlies bijhouden'!B125+5,'Gewichtsverlies bijhouden'!B126))","v":"00:00:00"},{"$f":"'Gewichtsverlies bijhouden'!C126","v":0}]
[{"$f":"IF(('Gewichtsverlies bijhouden'!C127=0)*('Gewichtsverlies bijhouden'!C126=0),TRUE)","v":true},{"$f":"IF(A106,0,IF('Gewichtsverlies bijhouden'!B127=0,'Gewichtsverlies bijhouden'!B126+5,'Gewichtsverlies bijhouden'!B127))","v":"00:00:00"},{"$f":"'Gewichtsverlies bijhouden'!C127","v":0}]
[{"$f":"IF(('Gewichtsverlies bijhouden'!C128=0)*('Gewichtsverlies bijhouden'!C127=0),TRUE)","v":true},{"$f":"IF(A107,0,IF('Gewichtsverlies bijhouden'!B128=0,'Gewichtsverlies bijhouden'!B127+5,'Gewichtsverlies bijhouden'!B128))","v":"00:00:00"},{"$f":"'Gewichtsverlies bijhouden'!C128","v":0}]
[{"$f":"IF(('Gewichtsverlies bijhouden'!C129=0)*('Gewichtsverlies bijhouden'!C128=0),TRUE)","v":true},{"$f":"IF(A108,0,IF('Gewichtsverlies bijhouden'!B129=0,'Gewichtsverlies bijhouden'!B128+5,'Gewichtsverlies bijhouden'!B129))","v":"00:00:00"},{"$f":"'Gewichtsverlies bijhouden'!C129","v":0}]